﻿Department Family,Entity,Date,Expense Type,Expense Area,Supplier,Amount in Sterling
Companies House,CH,08/10/2020,Capitalised IT Developers     ,Programme                     ,Hays Specialist Recruitment Ltd         ,£900.00
Companies House,CH,15/10/2020,Capitalised IT Developers     ,Programme                     ,Hays Specialist Recruitment Ltd         ,£900.00
Companies House,CH,15/10/2020,Capitalised IT Developers     ,Programme                     ,Hays Specialist Recruitment Ltd         ,"£1,680.00"
Companies House,CH,09/10/2020,Capitalised IT Developers     ,Programme                     ,Hays Specialist Recruitment Ltd         ,"£2,520.00"
Companies House,CH,12/10/2020,Capitalised IT Developers     ,Programme                     ,Hays Specialist Recruitment Ltd         ,"£3,360.00"
Companies House,CH,15/10/2020,Capitalised IT Developers     ,Programme                     ,Hays Specialist Recruitment Ltd         ,"£4,200.00"
Companies House,CH,02/10/2020,Capitalised IT Developers     ,Programme                     ,Hays Specialist Recruitment Ltd         ,"£4,650.00"
Companies House,CH,19/10/2020,Capitalised IT Developers     ,Programme                     ,Hays Specialist Recruitment Ltd         ,"£4,650.00"
Companies House,CH,06/10/2020,Capitalised IT Developers     ,Software Engineering          ,Hays Specialist Recruitment Ltd         ,"£2,327.87"
Companies House,CH,06/10/2020,Capitalised IT Developers     ,Software Engineering          ,Hays Specialist Recruitment Ltd         ,"£3,879.78"
Companies House,CH,02/10/2020,Car parking contract          ,Northern Ireland              ,CBRE NI LIMITED                         ,£900.00
Companies House,CH,09/10/2020,Car parking contract          ,Northern Ireland              ,CBRE NI LIMITED                         ,"£1,005.00"
Companies House,CH,09/10/2020,Car parking contract          ,Edinburgh                     ,The City of Edinburgh Council           ,£560.00
Companies House,CH,30/10/2020,CE Miscellaneous Additions TY          ,IT Infrastructure             ,AKHTER COMPUTERS PLC                    ,"£12,046.58"
Companies House,CH,13/10/2020,CE Miscellaneous Additions TY          ,IT Infrastructure             ,Computacenter (GCAT)                    ,"£72,393.00"
Companies House,CH,30/10/2020,CE Miscellaneous Additions TY          ,IT Infrastructure             ,Probrand Ltd                            ,"£10,738.60"
Companies House,CH,30/10/2020,CE Miscellaneous Additions TY          ,IT Infrastructure             ,Probrand Ltd                            ,"£75,158.20"
Companies House,CH,23/10/2020,CE Miscellaneous Additions TY          ,Programme                     ,TELEFONICA UK LTD                       ,"£17,500.00"
Companies House,CH,02/10/2020,CHD Invoice Printing          ,Accounting                    ,PARAGON CUSTOMER COMMUNICATIONS (LONDON),£613.09
Companies House,CH,21/10/2020,CHD Invoice Printing          ,Accounting                    ,PARAGON CUSTOMER COMMUNICATIONS (LONDON),£628.71
Companies House,CH,15/10/2020,Circuit Rental                ,IT Infrastructure             ,AdEPT Telecom PLC                       ,"£4,306.34"
Companies House,CH,21/10/2020,Circuit Rental                ,IT Infrastructure             ,AdEPT Telecom PLC                       ,"£4,306.34"
Companies House,CH,12/10/2020,Circuit Rental                ,IT Infrastructure             ,Vodafone Ltd                            ,"£9,084.95"
Companies House,CH,07/10/2020,Cloud Services                ,Platform Engineering          ,Amazon Web Services                     ,£761.35
Companies House,CH,21/10/2020,Cloud Services                ,Platform Engineering          ,Amazon Web Services                     ,£804.20
Companies House,CH,08/10/2020,Cloud Services                ,Platform Engineering          ,Amazon Web Services                     ,"£18,001.32"
Companies House,CH,21/10/2020,Cloud Services                ,Platform Engineering          ,Amazon Web Services                     ,"£18,810.21"
Companies House,CH,07/10/2020,Cloud Services                ,Platform Engineering          ,Amazon Web Services                     ,"£40,789.73"
Companies House,CH,21/10/2020,Cloud Services                ,Platform Engineering          ,Amazon Web Services                     ,"£42,163.21"
Companies House,CH,16/10/2020,Computer Cabling              ,IT Infrastructure             ,P J Telecom Services                    ,£870.00
Companies House,CH,08/10/2020,Consultants Computer          ,Accounting                    ,Advanced Business Solutions             ,£625.99
Companies House,CH,30/10/2020,Consultants Computer          ,Accounting                    ,Advanced Business Solutions             ,£625.99
Companies House,CH,08/10/2020,Consultants Computer          ,Accounting                    ,Advanced Business Solutions             ,£637.50
Companies House,CH,08/10/2020,Consultants Computer          ,Accounting                    ,Advanced Business Solutions             ,£637.50
Companies House,CH,08/10/2020,Consultants Computer          ,Accounting                    ,Advanced Business Solutions             ,"£1,275.00"
Companies House,CH,19/10/2020,Contact Centre                ,CDD Cardiff                   ,Serco Limited                           ,"£156,170.93"
Companies House,CH,09/10/2020,Contract Staff         ,Accounting                    ,Hays Specialist Recruitment Ltd         ,£558.72
Companies House,CH,08/10/2020,Contract Staff         ,Accounting                    ,Hays Specialist Recruitment Ltd         ,£633.60
Companies House,CH,08/10/2020,Contract Staff         ,Accounting                    ,Hays Specialist Recruitment Ltd         ,£633.60
Companies House,CH,08/10/2020,Contract Staff         ,Accounting                    ,Hays Specialist Recruitment Ltd         ,£633.60
Companies House,CH,09/10/2020,Contract Staff         ,Accounting                    ,Hays Specialist Recruitment Ltd         ,£633.60
Companies House,CH,19/10/2020,Contract Staff         ,Accounting                    ,Hays Specialist Recruitment Ltd         ,£633.60
Companies House,CH,23/10/2020,Contract Staff         ,Accounting                    ,Hays Specialist Recruitment Ltd         ,£633.60
Companies House,CH,29/10/2020,Contract Staff         ,Accounting                    ,Hays Specialist Recruitment Ltd         ,£633.60
Companies House,CH,09/10/2020,Contract Staff         ,Accounting                    ,Hays Specialist Recruitment Ltd         ,£689.09
Companies House,CH,09/10/2020,Contract Staff         ,Accounting                    ,Hays Specialist Recruitment Ltd         ,£689.09
Companies House,CH,09/10/2020,Contract Staff         ,Accounting                    ,Hays Specialist Recruitment Ltd         ,£689.09
Companies House,CH,09/10/2020,Contract Staff         ,Accounting                    ,Hays Specialist Recruitment Ltd         ,£689.09
Companies House,CH,19/10/2020,Contract Staff         ,Accounting                    ,Hays Specialist Recruitment Ltd         ,£689.09
Companies House,CH,29/10/2020,Contract Staff         ,Accounting                    ,Hays Specialist Recruitment Ltd         ,£689.09
Companies House,CH,02/10/2020,Contract Staff         ,Accounting                    ,MICHAEL PAGE INTERNATIONAL RECRUITMENT  ,£900.00
Companies House,CH,30/10/2020,Contract Staff         ,Accounting                    ,MICHAEL PAGE INTERNATIONAL RECRUITMENT  ,"£1,350.00"
Companies House,CH,21/10/2020,Contract Staff         ,Accounting                    ,MICHAEL PAGE INTERNATIONAL RECRUITMENT  ,"£1,462.50"
Companies House,CH,06/10/2020,Contract Staff         ,Accounting                    ,MICHAEL PAGE INTERNATIONAL RECRUITMENT  ,"£1,500.00"
Companies House,CH,12/10/2020,Contract Staff         ,Accounting                    ,MICHAEL PAGE INTERNATIONAL RECRUITMENT  ,"£1,500.00"
Companies House,CH,19/10/2020,Contract Staff         ,Accounting                    ,MICHAEL PAGE INTERNATIONAL RECRUITMENT  ,"£1,500.00"
Companies House,CH,27/10/2020,Contract Staff         ,Accounting                    ,MICHAEL PAGE INTERNATIONAL RECRUITMENT  ,"£1,500.00"
Companies House,CH,30/10/2020,Contract Staff         ,Accounting                    ,MICHAEL PAGE INTERNATIONAL RECRUITMENT  ,"£1,514.35"
Companies House,CH,30/10/2020,Contract Staff         ,Accounting                    ,MICHAEL PAGE INTERNATIONAL RECRUITMENT  ,"£1,625.00"
Companies House,CH,21/10/2020,Contract Staff         ,Accounting                    ,MICHAEL PAGE INTERNATIONAL RECRUITMENT  ,"£2,700.00"
Companies House,CH,02/10/2020,Contract Staff         ,Accounting                    ,MICHAEL PAGE INTERNATIONAL RECRUITMENT  ,"£2,925.00"
Companies House,CH,21/10/2020,Contract Staff         ,Accounting                    ,MICHAEL PAGE INTERNATIONAL RECRUITMENT  ,"£4,200.00"
Companies House,CH,21/10/2020,Contract Staff         ,Accounting                    ,MICHAEL PAGE INTERNATIONAL RECRUITMENT  ,"£4,543.05"
Companies House,CH,21/10/2020,Contract Staff         ,Accounting                    ,MICHAEL PAGE INTERNATIONAL RECRUITMENT  ,"£4,875.00"
Companies House,CH,13/10/2020,Contract Staff         ,Accounting                    ,MICHAEL PAGE INTERNATIONAL RECRUITMENT  ,"£6,966.01"
Companies House,CH,22/10/2020,Contract Staff         ,Analysis and Corporate Insight,CONCEPT RESOURCING T/A CONCEPT INFORMATION,£721.26
Companies House,CH,06/10/2020,Contract Staff         ,Analysis and Corporate Insight,CONCEPT RESOURCING T/A CONCEPT INFORMATION,£850.00
Companies House,CH,22/10/2020,Contract Staff         ,Analysis and Corporate Insight,CONCEPT RESOURCING T/A CONCEPT INFORMATION,"£1,081.89"
Companies House,CH,21/10/2020,Contract Staff         ,Analysis and Corporate Insight,CONCEPT RESOURCING T/A CONCEPT INFORMATION,"£1,113.11"
Companies House,CH,02/10/2020,Contract Staff         ,Analysis and Corporate Insight,CONCEPT RESOURCING T/A CONCEPT INFORMATION,"£1,127.20"
Companies House,CH,09/10/2020,Contract Staff         ,Analysis and Corporate Insight,CONCEPT RESOURCING T/A CONCEPT INFORMATION,"£1,127.20"
Companies House,CH,27/10/2020,Contract Staff         ,Analysis and Corporate Insight,CONCEPT RESOURCING T/A CONCEPT INFORMATION,"£1,127.20"
Companies House,CH,08/10/2020,Contract Staff         ,Analysis and Corporate Insight,CONCEPT RESOURCING T/A CONCEPT INFORMATION,"£1,275.00"
Companies House,CH,27/10/2020,Contract Staff         ,Analysis and Corporate Insight,CONCEPT RESOURCING T/A CONCEPT INFORMATION,"£1,295.11"
Companies House,CH,06/10/2020,Contract Staff         ,Analysis and Corporate Insight,CONCEPT RESOURCING T/A CONCEPT INFORMATION,"£1,803.15"
Companies House,CH,09/10/2020,Contract Staff         ,Analysis and Corporate Insight,CONCEPT RESOURCING T/A CONCEPT INFORMATION,"£1,803.15"
Companies House,CH,21/10/2020,Contract Staff         ,Analysis and Corporate Insight,CONCEPT RESOURCING T/A CONCEPT INFORMATION,"£1,803.15"
Companies House,CH,29/10/2020,Contract Staff         ,Analysis and Corporate Insight,CONCEPT RESOURCING T/A CONCEPT INFORMATION,"£1,803.15"
Companies House,CH,27/10/2020,Contract Staff         ,Building Services             ,Hays Specialist Recruitment Ltd         ,"£1,599.11"
Companies House,CH,19/10/2020,Contract Staff         ,Building Services             ,Hays Specialist Recruitment Ltd         ,"£1,602.40"
Companies House,CH,09/10/2020,Contract Staff         ,Building Services             ,Hays Specialist Recruitment Ltd         ,"£1,637.98"
Companies House,CH,06/10/2020,Contract Staff         ,Building Services             ,Hays Specialist Recruitment Ltd         ,"£1,680.16"
Companies House,CH,02/10/2020,Contract Staff         ,Building Services             ,Hays Specialist Recruitment Ltd         ,"£2,233.20"
Companies House,CH,08/10/2020,Contract Staff         ,Building Services             ,Hays Specialist Recruitment Ltd         ,"£2,233.20"
Companies House,CH,19/10/2020,Contract Staff         ,Building Services             ,Hays Specialist Recruitment Ltd         ,"£2,233.20"
Companies House,CH,27/10/2020,Contract Staff         ,Building Services             ,Hays Specialist Recruitment Ltd         ,"£2,339.70"
Companies House,CH,30/10/2020,Contract Staff         ,Building Services             ,Hays Specialist Recruitment Ltd         ,"£2,339.70"
Companies House,CH,06/10/2020,Contract Staff         ,Edinburgh                     ,Hays Specialist Recruitment Ltd         ,£582.19
Companies House,CH,06/10/2020,Contract Staff         ,Edinburgh                     ,Hays Specialist Recruitment Ltd         ,£582.19
Companies House,CH,06/10/2020,Contract Staff         ,Edinburgh                     ,Hays Specialist Recruitment Ltd         ,£582.19
Companies House,CH,09/10/2020,Contract Staff         ,Edinburgh                     ,Hays Specialist Recruitment Ltd         ,£582.19
Companies House,CH,19/10/2020,Contract Staff         ,Edinburgh                     ,Hays Specialist Recruitment Ltd         ,£582.19
Companies House,CH,29/10/2020,Contract Staff         ,Edinburgh                     ,Hays Specialist Recruitment Ltd         ,£582.19
Companies House,CH,29/10/2020,Contract Staff         ,Edinburgh                     ,Hays Specialist Recruitment Ltd         ,£582.19
Companies House,CH,19/10/2020,Contract Staff         ,Edinburgh                     ,Hays Specialist Recruitment Ltd         ,£727.74
Companies House,CH,19/10/2020,Contract Staff         ,Edinburgh                     ,Hays Specialist Recruitment Ltd         ,£727.74
Companies House,CH,29/10/2020,Contract Staff         ,Edinburgh                     ,Hays Specialist Recruitment Ltd         ,£727.74
Companies House,CH,29/10/2020,Contract Staff         ,Edinburgh                     ,Hays Specialist Recruitment Ltd         ,£727.74
Companies House,CH,29/10/2020,Contract Staff         ,Edinburgh                     ,Hays Specialist Recruitment Ltd         ,£727.74
Companies House,CH,29/10/2020,Contract Staff         ,Edinburgh                     ,Hays Specialist Recruitment Ltd         ,£727.74
Companies House,CH,21/10/2020,Contract Staff         ,HR Strategy & Policy          ,CONCEPT RESOURCING T/A CONCEPT INFORMATION,£785.10
Companies House,CH,21/10/2020,Contract Staff         ,HR Strategy & Policy          ,CONCEPT RESOURCING T/A CONCEPT INFORMATION,£785.10
Companies House,CH,27/10/2020,Contract Staff         ,HR Strategy & Policy          ,CONCEPT RESOURCING T/A CONCEPT INFORMATION,£785.10
Companies House,CH,27/10/2020,Contract Staff         ,HR Strategy & Policy          ,CONCEPT RESOURCING T/A CONCEPT INFORMATION,£785.10
Companies House,CH,06/10/2020,Contract Staff         ,Internal Communications,Hays Specialist Recruitment Ltd         ,"£1,263.60"
Companies House,CH,09/10/2020,Contract Staff         ,Internal Communications,Hays Specialist Recruitment Ltd         ,"£1,263.60"
Companies House,CH,19/10/2020,Contract Staff         ,Internal Communications,Hays Specialist Recruitment Ltd         ,"£1,263.60"
Companies House,CH,23/10/2020,Contract Staff         ,Internal Communications,Hays Specialist Recruitment Ltd         ,"£1,263.60"
Companies House,CH,29/10/2020,Contract Staff         ,Internal Communications,Hays Specialist Recruitment Ltd         ,"£1,263.60"
Companies House,CH,02/10/2020,Contract Staff         ,Internal Communications,Hays Specialist Recruitment Ltd         ,"£1,741.92"
Companies House,CH,08/10/2020,Contract Staff         ,Internal Communications,Hays Specialist Recruitment Ltd         ,"£1,741.92"
Companies House,CH,29/10/2020,Contract Staff         ,Internal Communications,Hays Specialist Recruitment Ltd         ,"£1,959.66"
Companies House,CH,15/10/2020,Contract Staff         ,Internal Communications,Hays Specialist Recruitment Ltd         ,"£2,177.40"
Companies House,CH,21/10/2020,Contract Staff         ,Internal Communications,Hays Specialist Recruitment Ltd         ,"£2,177.40"
Companies House,CH,30/10/2020,Contract Staff         ,IT Infrastructure             ,ALEXANDER MANN SOLUTIONS                ,"£2,563.87"
Companies House,CH,06/10/2020,Contract Staff         ,IT Infrastructure             ,ALEXANDER MANN SOLUTIONS                ,"£2,848.74"
Companies House,CH,23/10/2020,Contract Staff         ,IT Infrastructure             ,ALEXANDER MANN SOLUTIONS                ,"£2,848.74"
Companies House,CH,19/10/2020,Contract Staff         ,IT Infrastructure             ,ALEXANDER MANN SOLUTIONS                ,"£5,127.73"
Companies House,CH,02/10/2020,Contract Staff         ,IT Infrastructure             ,Hays Specialist Recruitment Ltd         ,"£1,300.08"
Companies House,CH,09/10/2020,Contract Staff         ,IT Infrastructure             ,Hays Specialist Recruitment Ltd         ,"£1,300.08"
Companies House,CH,15/10/2020,Contract Staff         ,IT Infrastructure             ,Hays Specialist Recruitment Ltd         ,"£3,250.20"
Companies House,CH,21/10/2020,Contract Staff         ,IT Infrastructure             ,Hays Specialist Recruitment Ltd         ,"£3,250.20"
Companies House,CH,29/10/2020,Contract Staff         ,IT Infrastructure             ,Hays Specialist Recruitment Ltd         ,"£3,250.20"
Companies House,CH,06/10/2020,Contract Staff         ,IT Infrastructure             ,Spring Technology Staffing Services Ltd ,"£1,351.20"
Companies House,CH,06/10/2020,Contract Staff         ,IT Infrastructure             ,Spring Technology Staffing Services Ltd ,"£2,026.80"
Companies House,CH,02/10/2020,Contract Staff         ,IT Infrastructure             ,Spring Technology Staffing Services Ltd ,"£3,378.00"
Companies House,CH,12/10/2020,Contract Staff         ,IT Infrastructure             ,Spring Technology Staffing Services Ltd ,"£3,378.00"
Companies House,CH,19/10/2020,Contract Staff         ,IT Infrastructure             ,Spring Technology Staffing Services Ltd ,"£3,378.00"
Companies House,CH,27/10/2020,Contract Staff         ,IT Infrastructure             ,Spring Technology Staffing Services Ltd ,"£3,378.00"
Companies House,CH,09/10/2020,Contract Staff         ,IT Infrastructure             ,Spring Technology Staffing Services Ltd ,"£4,264.50"
Companies House,CH,15/10/2020,Contract Staff         ,IT Infrastructure             ,Spring Technology Staffing Services Ltd ,"£4,264.50"
Companies House,CH,23/10/2020,Contract Staff         ,IT Infrastructure             ,Spring Technology Staffing Services Ltd ,"£4,264.50"
Companies House,CH,30/10/2020,Contract Staff         ,IT Infrastructure             ,Spring Technology Staffing Services Ltd ,"£4,264.50"
Companies House,CH,09/10/2020,Contract Staff         ,Late Filing Penalties Accounting,Hays Specialist Recruitment Ltd         ,£506.88
Companies House,CH,06/10/2020,Contract Staff         ,Late Filing Penalties Accounting,Hays Specialist Recruitment Ltd         ,£511.20
Companies House,CH,06/10/2020,Contract Staff         ,Late Filing Penalties Accounting,Hays Specialist Recruitment Ltd         ,£511.20
Companies House,CH,09/10/2020,Contract Staff         ,Late Filing Penalties Accounting,Hays Specialist Recruitment Ltd         ,£511.20
Companies House,CH,09/10/2020,Contract Staff         ,Late Filing Penalties Accounting,Hays Specialist Recruitment Ltd         ,£511.20
Companies House,CH,09/10/2020,Contract Staff         ,Late Filing Penalties Accounting,Hays Specialist Recruitment Ltd         ,£630.48
Companies House,CH,12/10/2020,Contract Staff         ,Late Filing Penalties Accounting,Hays Specialist Recruitment Ltd         ,£630.48
Companies House,CH,19/10/2020,Contract Staff         ,Late Filing Penalties Accounting,Hays Specialist Recruitment Ltd         ,£630.48
Companies House,CH,09/10/2020,Contract Staff         ,Late Filing Penalties Accounting,Hays Specialist Recruitment Ltd         ,£633.60
Companies House,CH,09/10/2020,Contract Staff         ,Late Filing Penalties Accounting,Hays Specialist Recruitment Ltd         ,£633.60
Companies House,CH,06/10/2020,Contract Staff         ,Late Filing Penalties Accounting,Hays Specialist Recruitment Ltd         ,£634.74
Companies House,CH,06/10/2020,Contract Staff         ,Late Filing Penalties Accounting,Hays Specialist Recruitment Ltd         ,£639.00
Companies House,CH,06/10/2020,Contract Staff         ,Late Filing Penalties Accounting,Hays Specialist Recruitment Ltd         ,£639.00
Companies House,CH,09/10/2020,Contract Staff         ,Late Filing Penalties Accounting,Hays Specialist Recruitment Ltd         ,£639.00
Companies House,CH,09/10/2020,Contract Staff         ,Late Filing Penalties Accounting,Hays Specialist Recruitment Ltd         ,£639.00
Companies House,CH,19/10/2020,Contract Staff         ,Late Filing Penalties Accounting,Hays Specialist Recruitment Ltd         ,£639.00
Companies House,CH,23/10/2020,Contract Staff         ,Late Filing Penalties Accounting,Hays Specialist Recruitment Ltd         ,£639.00
Companies House,CH,30/10/2020,Contract Staff         ,Late Filing Penalties Accounting,Hays Specialist Recruitment Ltd         ,£639.00
Companies House,CH,30/10/2020,Contract Staff         ,Late Filing Penalties Accounting,Hays Specialist Recruitment Ltd         ,£639.00
Companies House,CH,21/10/2020,Contract Staff         ,Late Filing Penalties Accounting,Hays Specialist Recruitment Ltd         ,£668.82
Companies House,CH,06/10/2020,Contract Staff         ,Late Filing Penalties Accounting,Hays Specialist Recruitment Ltd         ,"£2,896.68"
Companies House,CH,12/10/2020,Contract Staff         ,Late Filing Penalties Accounting,Hays Specialist Recruitment Ltd         ,"£2,896.68"
Companies House,CH,19/10/2020,Contract Staff         ,Late Filing Penalties Accounting,Hays Specialist Recruitment Ltd         ,"£2,896.68"
Companies House,CH,29/10/2020,Contract Staff         ,Late Filing Penalties Accounting,Hays Specialist Recruitment Ltd         ,"£2,896.68"
Companies House,CH,29/10/2020,Contract Staff         ,Projects,Hays Specialist Recruitment Ltd         ,"£2,612.69"
Companies House,CH,09/10/2020,Contract Staff         ,Projects,Hays Specialist Recruitment Ltd         ,"£2,635.08"
Companies House,CH,09/10/2020,Contract Staff         ,Projects,Hays Specialist Recruitment Ltd         ,"£2,635.08"
Companies House,CH,15/10/2020,Contract Staff         ,Projects,Hays Specialist Recruitment Ltd         ,"£2,635.08"
Companies House,CH,22/10/2020,Contract Staff         ,Projects,Hays Specialist Recruitment Ltd         ,"£2,635.08"
Companies House,CH,29/10/2020,Contract Staff         ,Projects,Hays Specialist Recruitment Ltd         ,"£2,635.08"
Companies House,CH,09/10/2020,Contract Staff         ,Projects,Hays Specialist Recruitment Ltd         ,"£3,265.86"
Companies House,CH,23/10/2020,Contract Staff         ,Projects,Hays Specialist Recruitment Ltd         ,"£3,265.86"
Companies House,CH,29/10/2020,Contract Staff         ,Projects,Hays Specialist Recruitment Ltd         ,"£3,265.86"
Companies House,CH,06/10/2020,Contract Staff         ,Projects,Hays Specialist Recruitment Ltd         ,"£3,357.96"
Companies House,CH,15/10/2020,Contract Staff         ,Projects,Hays Specialist Recruitment Ltd         ,"£3,357.96"
Companies House,CH,27/10/2020,Contract Staff         ,Projects,Hays Specialist Recruitment Ltd         ,"£3,357.96"
Companies House,CH,29/10/2020,Contract Staff         ,Projects,Hays Specialist Recruitment Ltd         ,"£3,357.96"
Companies House,CH,29/10/2020,Contract Staff         ,Projects,Hays Specialist Recruitment Ltd         ,"£3,357.96"
Companies House,CH,21/10/2020,Contract Staff         ,Procurement                   ,Hays Specialist Recruitment Ltd         ,"£2,367.11"
Companies House,CH,02/10/2020,Contract Staff         ,Procurement                   ,Hays Specialist Recruitment Ltd         ,"£3,241.26"
Companies House,CH,12/10/2020,Contract Staff         ,Procurement                   ,Hays Specialist Recruitment Ltd         ,"£3,241.26"
Companies House,CH,12/10/2020,Contract Staff         ,Procurement                   ,Hays Specialist Recruitment Ltd         ,"£3,241.26"
Companies House,CH,02/10/2020,Contract Staff         ,Procurement                   ,Hays Specialist Recruitment Ltd         ,"£3,541.26"
Companies House,CH,08/10/2020,Contract Staff         ,Procurement                   ,Hays Specialist Recruitment Ltd         ,"£3,541.26"
Companies House,CH,15/10/2020,Contract Staff         ,Procurement                   ,Hays Specialist Recruitment Ltd         ,"£3,541.26"
Companies House,CH,21/10/2020,Contract Staff         ,Procurement                   ,Hays Specialist Recruitment Ltd         ,"£3,541.26"
Companies House,CH,29/10/2020,Contract Staff         ,Procurement                   ,Hays Specialist Recruitment Ltd         ,"£3,541.26"
Companies House,CH,21/10/2020,Contract Staff         ,Procurement                   ,Hays Specialist Recruitment Ltd         ,"£3,945.18"
Companies House,CH,29/10/2020,Contract Staff         ,Procurement                   ,Hays Specialist Recruitment Ltd         ,"£3,945.18"
Companies House,CH,06/10/2020,Contract Staff         ,Programme                     ,Hays Specialist Recruitment Ltd         ,"£1,710.11"
Companies House,CH,29/10/2020,Contract Staff         ,Programme                     ,Hays Specialist Recruitment Ltd         ,"£2,060.06"
Companies House,CH,19/10/2020,Contract Staff         ,Programme                     ,Hays Specialist Recruitment Ltd         ,"£2,565.17"
Companies House,CH,06/10/2020,Contract Staff         ,Programme                     ,Hays Specialist Recruitment Ltd         ,"£2,575.08"
Companies House,CH,09/10/2020,Contract Staff         ,Programme                     ,Hays Specialist Recruitment Ltd         ,"£2,575.08"
Companies House,CH,19/10/2020,Contract Staff         ,Programme                     ,Hays Specialist Recruitment Ltd         ,"£2,575.08"
Companies House,CH,09/10/2020,Contract Staff         ,Programme                     ,Hays Specialist Recruitment Ltd         ,"£2,850.18"
Companies House,CH,23/10/2020,Contract Staff         ,Programme                     ,Hays Specialist Recruitment Ltd         ,"£2,850.18"
Companies House,CH,30/10/2020,Contract Staff         ,Programme                     ,Hays Specialist Recruitment Ltd         ,"£2,850.18"
Companies House,CH,02/10/2020,Contract Staff         ,Programme                     ,Hays Specialist Recruitment Ltd         ,"£3,167.70"
Companies House,CH,09/10/2020,Contract Staff         ,Programme                     ,Hays Specialist Recruitment Ltd         ,"£3,167.70"
Companies House,CH,15/10/2020,Contract Staff         ,Programme                     ,Hays Specialist Recruitment Ltd         ,"£3,167.70"
Companies House,CH,19/10/2020,Contract Staff         ,Programme                     ,Hays Specialist Recruitment Ltd         ,"£3,167.70"
Companies House,CH,21/10/2020,Contract Staff         ,Programme                     ,Hays Specialist Recruitment Ltd         ,"£3,167.70"
Companies House,CH,02/10/2020,Contract Staff         ,Programme                     ,Hays Specialist Recruitment Ltd         ,"£4,635.42"
Companies House,CH,02/10/2020,Contract Staff         ,Programme                     ,Hays Specialist Recruitment Ltd         ,"£4,635.42"
Companies House,CH,06/10/2020,Contract Staff         ,Programme                     ,Hays Specialist Recruitment Ltd         ,"£4,635.42"
Companies House,CH,08/10/2020,Contract Staff         ,Programme                     ,Hays Specialist Recruitment Ltd         ,"£4,635.42"
Companies House,CH,15/10/2020,Contract Staff         ,Programme                     ,Hays Specialist Recruitment Ltd         ,"£4,635.42"
Companies House,CH,21/10/2020,Contract Staff         ,Programme                     ,Hays Specialist Recruitment Ltd         ,"£4,635.42"
Companies House,CH,29/10/2020,Contract Staff         ,Programme                     ,Hays Specialist Recruitment Ltd         ,"£4,635.42"
Companies House,CH,08/10/2020,Contract Staff         ,Programme                     ,Spring Technology Staffing Services Ltd ,"£2,056.20"
Companies House,CH,02/10/2020,Contract Staff         ,Programme                     ,Spring Technology Staffing Services Ltd ,"£3,042.00"
Companies House,CH,08/10/2020,Contract Staff         ,Programme                     ,Spring Technology Staffing Services Ltd ,"£3,042.00"
Companies House,CH,19/10/2020,Contract Staff         ,Programme                     ,Spring Technology Staffing Services Ltd ,"£3,042.00"
Companies House,CH,21/10/2020,Contract Staff         ,Programme                     ,Spring Technology Staffing Services Ltd ,"£3,042.00"
Companies House,CH,29/10/2020,Contract Staff         ,Programme                     ,Spring Technology Staffing Services Ltd ,"£3,042.00"
Companies House,CH,08/10/2020,Contract Staff         ,Programme                     ,Spring Technology Staffing Services Ltd ,"£3,084.30"
Companies House,CH,02/10/2020,Contract Staff         ,Programme                     ,Spring Technology Staffing Services Ltd ,"£3,964.50"
Companies House,CH,08/10/2020,Contract Staff         ,Programme                     ,Spring Technology Staffing Services Ltd ,"£3,964.50"
Companies House,CH,19/10/2020,Contract Staff         ,Programme                     ,Spring Technology Staffing Services Ltd ,"£3,964.50"
Companies House,CH,21/10/2020,Contract Staff         ,Programme                     ,Spring Technology Staffing Services Ltd ,"£3,964.50"
Companies House,CH,29/10/2020,Contract Staff         ,Programme                     ,Spring Technology Staffing Services Ltd ,"£3,964.50"
Companies House,CH,02/10/2020,Contract Staff         ,Programme                     ,Spring Technology Staffing Services Ltd ,"£5,140.50"
Companies House,CH,15/10/2020,Contract Staff         ,Programme                     ,Spring Technology Staffing Services Ltd ,"£5,140.50"
Companies House,CH,21/10/2020,Contract Staff         ,Programme                     ,Spring Technology Staffing Services Ltd ,"£5,140.50"
Companies House,CH,09/10/2020,Contract Staff         ,Software Engineering          ,Hays Specialist Recruitment Ltd         ,"£4,329.78"
Companies House,CH,12/10/2020,Contract Staff         ,Software Engineering          ,Hays Specialist Recruitment Ltd         ,"£4,329.78"
Companies House,CH,15/10/2020,Contract Staff         ,Software Engineering          ,Hays Specialist Recruitment Ltd         ,"£4,329.78"
Companies House,CH,21/10/2020,Contract Staff         ,Software Engineering          ,Hays Specialist Recruitment Ltd         ,"£4,329.78"
Companies House,CH,29/10/2020,Contract Staff         ,Software Engineering          ,Hays Specialist Recruitment Ltd         ,"£4,329.78"
Companies House,CH,06/10/2020,Contract Staff         ,Software Management           ,ALEXANDER MANN SOLUTIONS                ,"£2,930.88"
Companies House,CH,30/10/2020,Contract Staff         ,Software Management           ,ALEXANDER MANN SOLUTIONS                ,"£2,930.88"
Companies House,CH,23/10/2020,Contract Staff         ,Software Management           ,ALEXANDER MANN SOLUTIONS                ,"£8,059.92"
Companies House,CH,02/10/2020,Contract Staff         ,"Strategy, Policy & Communications",Hays Specialist Recruitment Ltd         ,£846.00
Companies House,CH,08/10/2020,Contract Staff         ,"Strategy, Policy & Communications",Hays Specialist Recruitment Ltd         ,£846.00
Companies House,CH,15/10/2020,Contract Staff         ,"Strategy, Policy & Communications",Hays Specialist Recruitment Ltd         ,£846.00
Companies House,CH,19/10/2020,Contract Staff         ,"Strategy, Policy & Communications",Hays Specialist Recruitment Ltd         ,£846.00
Companies House,CH,29/10/2020,Contract Staff         ,"Strategy, Policy & Communications",Hays Specialist Recruitment Ltd         ,£846.00
Companies House,CH,09/10/2020,Contract Staff         ,"Strategy, Policy & Communications",Hays Specialist Recruitment Ltd         ,"£1,180.50"
Companies House,CH,19/10/2020,Contract Staff         ,"Strategy, Policy & Communications",Hays Specialist Recruitment Ltd         ,"£1,264.82"
Companies House,CH,23/10/2020,Contract Staff         ,"Strategy, Policy & Communications",Hays Specialist Recruitment Ltd         ,"£1,292.93"
Companies House,CH,09/10/2020,Contract Staff         ,"Strategy, Policy & Communications",Hays Specialist Recruitment Ltd         ,"£1,297.84"
Companies House,CH,19/10/2020,Contract Staff         ,"Strategy, Policy & Communications",Hays Specialist Recruitment Ltd         ,"£1,297.84"
Companies House,CH,29/10/2020,Contract Staff         ,"Strategy, Policy & Communications",Hays Specialist Recruitment Ltd         ,"£1,297.84"
Companies House,CH,29/10/2020,Contract Staff         ,"Strategy, Policy & Communications",Hays Specialist Recruitment Ltd         ,"£1,297.84"
Companies House,CH,06/10/2020,Contract Staff         ,"Strategy, Policy & Communications",Hays Specialist Recruitment Ltd         ,"£1,386.64"
Companies House,CH,29/10/2020,Contract Staff         ,"Strategy, Policy & Communications",Hays Specialist Recruitment Ltd         ,"£1,461.59"
Companies House,CH,13/10/2020,Diversity & Inclusion         ,Health and Wellbeing          ,CARERS UK                               ,£500.00
Companies House,CH,08/10/2020,Electricity                   ,Building Services             ,E D F ENERGY CUSTOMERS PLC              ,"£44,865.19"
Companies House,CH,12/10/2020,Electricity                   ,Edinburgh                     ,E D F ENERGY CUSTOMERS PLC              ,£681.76
Companies House,CH,09/10/2020,Electricity                   ,Northern Ireland              ,Power NI                                ,"£1,546.36"
Companies House,CH,27/10/2020,Environmental costs           ,Building Services             ,ARCADIS LLP                             ,"£1,350.00"
Companies House,CH,15/10/2020,Environmental costs           ,Building Services             ,SANTIA ASBESTOS MANAGEMENT LTD          ,"£1,393.75"
Companies House,CH,15/10/2020,Environmental costs           ,Building Services             ,SANTIA ASBESTOS MANAGEMENT LTD          ,"£7,184.00"
Companies House,CH,02/10/2020,EST Additions This Year       ,Building Services             ,ARAMARK                                 ,"£10,621.75"
Companies House,CH,16/10/2020,EST Additions This Year       ,CDD Cardiff                   ,Kodak Alaris Ltd                        ,"£36,835.20"
Companies House,CH,06/10/2020,EST Additions This Year       ,Covid 19 Activity             ,COMBINED OFFICE INTERIORS LTD           ,"£2,397.50"
Companies House,CH,06/10/2020,EST Additions This Year       ,Covid 19 Activity             ,COMBINED OFFICE INTERIORS LTD           ,"£2,526.50"
Companies House,CH,06/10/2020,EST Additions This Year       ,Covid 19 Activity             ,COMBINED OFFICE INTERIORS LTD           ,"£3,886.50"
Companies House,CH,21/10/2020,External managed services     ,Programme                     ,FDM GROUP                               ,"£59,534.00"
Companies House,CH,15/10/2020,External managed services     ,Programme                     ,FDM GROUP                               ,"£67,372.00"
Companies House,CH,16/10/2020,External managed services     ,Programme                     ,FDM GROUP                               ,"£70,632.00"
Companies House,CH,15/10/2020,External managed services     ,Programme                     ,FDM GROUP                               ,"£78,060.00"
Companies House,CH,30/10/2020,External managed services     ,Programme                     ,Hays Specialist Recruitment Ltd         ,"£4,200.00"
Companies House,CH,30/10/2020,External managed services     ,Programme                     ,Hays Specialist Recruitment Ltd         ,"£4,200.00"
Companies House,CH,22/10/2020,External managed services     ,Programme                     ,Hays Specialist Recruitment Ltd         ,"£4,650.00"
Companies House,CH,22/10/2020,External managed services     ,Programme                     ,Hays Specialist Recruitment Ltd         ,"£4,650.00"
Companies House,CH,08/10/2020,External managed services     ,Programme                     ,THE DIGITAL ACCESSIBILITY CENTRE LTD    ,"£2,700.00"
Companies House,CH,19/10/2020,Gazette Notices               ,CDD Cardiff                   ,Stationery Office                       ,"£1,320.00"
Companies House,CH,23/10/2020,Gazette Notices               ,CDD Cardiff                   ,Stationery Office                       ,"£8,497.64"
Companies House,CH,08/10/2020,Government Legal              ,Create & Close a Company,SCOTLAND OFFICE                         ,"£3,813.00"
Companies House,CH,27/10/2020,Government Legal              ,Legal Services                ,GOVERNMENT LEGAL DEPARTMENT             ,"£1,602.60"
Companies House,CH,23/10/2020,Hardware &Software Maintenance ,IT Infrastructure             ,INSIGHT DIRECT (UK) LTD                 ,"£138,564.65"
Companies House,CH,13/10/2020,Hardware &Software Maintenance ,Procurement                   ,HFX Ltd                                 ,"£45,599.37"
Companies House,CH,21/10/2020,Hardware &Software Maintenance ,Procurement                   ,MHR                                     ,"£2,439.84"
Companies House,CH,21/10/2020,ISDN & ADSL Circuits          ,IT Infrastructure             ,British Telecom PLC                     ,"£1,030.62"
Companies House,CH,23/10/2020,ISDN & ADSL Circuits          ,IT Infrastructure             ,British Telecom PLC                     ,"£13,935.31"
Companies House,CH,15/10/2020,Legal Disbursements,Late Filing Penalties Accounting,Optima Legal Services Ltd               ,"£12,196.24"
Companies House,CH,15/10/2020,Legal Disbursements,Late Filing Penalties Accounting,Optima Legal Services Ltd               ,"£14,585.50"
Companies House,CH,06/10/2020,Micrographics                 ,CDD Cardiff                   ,Transmedia Technology Ltd               ,"£4,477.18"
Companies House,CH,13/10/2020,Occupational Health Contract  ,Building Services             ,PEOPLE ASSET MANAGEMENT GROUP LTD       ,£694.00
Companies House,CH,15/10/2020,Occupational Health Contract  ,Building Services             ,PEOPLE ASSET MANAGEMENT GROUP LTD       ,"£1,725.00"
Companies House,CH,13/10/2020,Occupational Health Contract  ,Building Services             ,PEOPLE ASSET MANAGEMENT GROUP LTD       ,"£1,768.00"
Companies House,CH,06/10/2020,Occupational Health Contract  ,Building Services             ,PEOPLE ASSET MANAGEMENT GROUP LTD       ,"£1,875.00"
Companies House,CH,27/10/2020,Occupational Health Contract  ,Building Services             ,PEOPLE ASSET MANAGEMENT GROUP LTD       ,"£2,291.60"
Companies House,CH,29/10/2020,Occupational Health Contract  ,Building Services             ,PEOPLE ASSET MANAGEMENT GROUP LTD       ,"£2,405.00"
Companies House,CH,02/10/2020,Office Furniture              ,Building Services             ,GRESHAM OFFICE FURNITURE LTD            ,"£7,640.00"
Companies House,CH,23/10/2020,Office Machinery Maintenance  ,Procurement                   ,QUADIENT UK LIMITED                     ,"£1,264.80"
Companies House,CH,09/10/2020,Office Machinery Purchase     ,Procurement                   ,QUADIENT UK LIMITED                     ,"£1,372.10"
Companies House,CH,23/10/2020,Office Machinery Purchase     ,Procurement                   ,QUADIENT UK LIMITED                     ,"£11,958.00"
Companies House,CH,30/10/2020,payroll and e5 Maintenance    ,IPO Finance App               ,Advanced Business Solutions             ,"£5,697.65"
Companies House,CH,06/10/2020,Postage  ,CDD Cardiff                   ,DX Network Services Limited             ,"£3,857.49"
Companies House,CH,06/10/2020,Postage  ,CDD Cardiff                   ,DX Network Services Limited             ,"£3,857.49"
Companies House,CH,23/10/2020,Postage  ,CDD Cardiff                   ,Royal Mail                              ,"£2,965.53"
Companies House,CH,23/10/2020,Postage  ,CDD Cardiff                   ,Royal Mail                              ,"£4,358.34"
Companies House,CH,06/10/2020,Postage  ,"DMS, Repos and IDT            ",APOLLO DISTRIBUTION SOLUTIONS LTD       ,"£1,162.55"
Companies House,CH,21/10/2020,Postage  ,"DMS, Repos and IDT            ",Royal Mail                              ,"£2,556.50"
Companies House,CH,06/10/2020,Postage  ,"DMS, Repos and IDT            ",Royal Mail                              ,"£2,694.57"
Companies House,CH,16/10/2020,Postage  ,"DMS, Repos and IDT            ",Royal Mail                              ,"£3,455.25"
Companies House,CH,06/10/2020,Postage  ,"DMS, Repos and IDT            ",Royal Mail                              ,"£4,202.47"
Companies House,CH,06/10/2020,Postage  ,Edinburgh                     ,DX Network Services Limited             ,£877.50
Companies House,CH,06/10/2020,Postage  ,Edinburgh                     ,DX Network Services Limited             ,£877.50
Companies House,CH,23/10/2020,Postage  ,Edinburgh                     ,Royal Mail                              ,"£1,069.64"
Companies House,CH,06/10/2020,Independent Adjudication – details withheld,Late Filing Penalties,Name withheld,"£1,441.12"
Companies House,CH,09/10/2020,Print and Mailing Contract    ,CDD Cardiff                   ,APS GROUP                               ,"£2,547.38"
Companies House,CH,23/10/2020,Print and Mailing Contract    ,CDD Cardiff                   ,APS GROUP                               ,"£28,076.95"
Companies House,CH,06/10/2020,Print and Mailing Contract    ,CDD Cardiff                   ,APS GROUP                               ,"£30,091.33"
Companies House,CH,06/10/2020,Print and Mailing Contract    ,CDD Cardiff                   ,APS GROUP                               ,"£63,690.26"
Companies House,CH,06/10/2020,Print and Mailing Contract    ,CDD Cardiff                   ,APS GROUP                               ,"£66,163.33"
Companies House,CH,21/10/2020,Print and Mailing Contract    ,CDD Cardiff                   ,APS GROUP                               ,"£70,745.58"
Companies House,CH,19/10/2020,Print and Mailing Contract    ,CDD Cardiff                   ,APS GROUP                               ,"£107,755.87"
Companies House,CH,19/10/2020,Print and Mailing Contract    ,CDD Cardiff                   ,RISO (uk) LTD                           ,"£1,752.00"
Companies House,CH,06/10/2020,Print and Mailing Contract    ,Late Filing Penalties,A McLay & Company Ltd                   ,"£2,703.84"
Companies House,CH,06/10/2020,Print and Mailing Contract    ,Late Filing Penalties,A McLay & Company Ltd                   ,"£3,689.67"
Companies House,CH,06/10/2020,Print and Mailing Contract    ,Late Filing Penalties,A McLay & Company Ltd                   ,"£4,188.13"
Companies House,CH,06/10/2020,Print and Mailing Contract    ,Late Filing Penalties,A McLay & Company Ltd                   ,"£4,881.73"
Companies House,CH,23/10/2020,Print and Mailing Contract    ,Late Filing Penalties,A McLay & Company Ltd                   ,"£6,296.22"
Companies House,CH,29/10/2020,Professional Fees             ,Building Services             ,BESA PUBLICATIONS LTD                   ,£525.00
Companies House,CH,13/10/2020,Professional Fees             ,IT Infrastructure             ,ALCUMUS ISOQAR LTD                      ,"£4,445.00"
Companies House,CH,08/10/2020,Professional Fees             ,IT Infrastructure             ,Computacenter (GCAT)                    ,"£6,419.52"
Companies House,CH,06/10/2020,Professional Fees             ,IT Infrastructure             ,MAINTEL EUROPE LTD                      ,"£1,400.00"
Companies House,CH,13/10/2020,Professional Fees             ,Programme                     ,NCC GROUP SECURITY                      ,"£6,900.00"
Companies House,CH,30/10/2020,Professional Fees             ,Programme                     ,Risual Limited                          ,"£1,900.00"
Companies House,CH,15/10/2020,RATES                         ,Building Services             ,City and County of Cardiff              ,"£75,970.00"
Companies House,CH,29/10/2020,RATES                         ,Edinburgh                     ,The City of Edinburgh Council           ,"£8,846.00"
Companies House,CH,05/10/2020,RATES                         ,London Information Centre            ,CITY OF WESTMINSTER                     ,"£1,934.00"
Companies House,CH,05/10/2020,RATES                         ,London Information Centre            ,CITY OF WESTMINSTER                     ,"£2,944.00"
Companies House,CH,29/10/2020,Rent                          ,Edinburgh                     ,KNIGHT FRANK                            ,"£65,480.00"
Companies House,CH,06/10/2020,Rent                          ,Northern Ireland              ,CBRE NI LIMITED                         ,"£24,405.30"
Companies House,CH,23/10/2020,Restaurant Services           ,Building Services             ,ARAMARK                                 ,"£33,385.86"
Companies House,CH,08/10/2020,Rolling Maintenance & minor contracts,Building Services             ,Twofold Ltd                             ,"£6,886.20"
Companies House,CH,23/10/2020,Security                      ,Accounting                    ,Loomis Uk Ltd                           ,£649.45
Companies House,CH,23/10/2020,Security                      ,Accounting                    ,Loomis Uk Ltd                           ,£649.45
Companies House,CH,08/10/2020,Security                      ,Building Services             ,Twofold Ltd                             ,"£2,880.00"
Companies House,CH,29/10/2020,Service charges               ,Edinburgh                     ,KNIGHT FRANK                            ,"£13,683.67"
Companies House,CH,06/10/2020,Service charges               ,Northern Ireland              ,CBRE NI LIMITED                         ,"£7,840.24"
Companies House,CH,21/10/2020,Software as a service         ,HR Strategy & Policy          ,QUALTRICS LLC                           ,"£30,191.00"
Companies House,CH,13/10/2020,Software as a service         ,IT Infrastructure             ,E2E ASSURE                              ,"£19,935.00"
Companies House,CH,19/10/2020,Software as a service         ,IT Infrastructure             ,GRANICUS                                ,£581.00
Companies House,CH,06/10/2020,Software as a service         ,IT Infrastructure             ,INSIGHT DIRECT (UK) LTD                 ,"£7,261.56"
Companies House,CH,08/10/2020,Software Licence              ,IT Infrastructure             ,Dell Computer Corporation Ltd           ,£871.20
Companies House,CH,08/10/2020,Software Licence              ,Platform Engineering          ,I B M United Kingdom Ltd                ,"£30,842.68"
Companies House,CH,23/10/2020,Stationery & Consumables      ,CDD Cardiff                   ,BLAKE ENVELOPES                         ,"£1,202.50"
Companies House,CH,29/10/2020,Stationery & Consumables      ,Procurement                   ,A McLay & Company Ltd                   ,£900.00
Companies House,CH,12/10/2020,Telephone Costs,IT Infrastructure             ,TELEFONICA UK LTD                       ,"£6,551.48"
Companies House,CH,21/10/2020,Training CDD                  ,Training                      ,EMPHASIS TRAINING LTD                   ,"£2,782.80"
Companies House,CH,06/10/2020,Training CDD                  ,Training                      ,IMPACT FACTORY LTD                      ,"£6,000.00"
Companies House,CH,30/10/2020,Training Digital              ,Training                      ,ASSIST KNOWLEDGE DEVELOPMENT LTD        ,£750.00
Companies House,CH,30/10/2020,Training External             ,Training                      ,ART OF BRILLIANCE LTD                   ,"£8,500.00"
Companies House,CH,19/10/2020,Training External             ,Training                      ,BITESIZE COMPUTER TRAINING LTD          ,£500.00
Companies House,CH,23/10/2020,Training External             ,Training                      ,CSL-KPMG LLP                            ,"£1,251.00"
Companies House,CH,27/10/2020,Training External             ,Training                      ,CSL-KPMG LLP                            ,"£1,251.00"
Companies House,CH,19/10/2020,Training External             ,Training                      ,CSL-KPMG LLP                            ,"£2,257.00"
Companies House,CH,19/10/2020,Training External             ,Training                      ,CSL-KPMG LLP                            ,"£2,257.00"
Companies House,CH,23/10/2020,Training External             ,Training                      ,CSL-KPMG LLP                            ,"£2,257.00"
Companies House,CH,23/10/2020,Training External             ,Training                      ,CSL-KPMG LLP                            ,"£2,257.00"
Companies House,CH,19/10/2020,Training External             ,Training                      ,LEAH SIAN DAVIES                        ,£600.00
Companies House,CH,06/10/2020,Training External             ,Training                      ,SEVENHILL GROUP LTD                     ,£750.00
Companies House,CH,22/10/2020,Training External             ,Training                      ,TRACY MOUNTAIN CONSULTANCY LTD          ,"£1,200.00"
Companies House,CH,22/10/2020,Training External             ,Training                      ,VIA-K - T/A PLANB CONSULTING            ,£950.00
Companies House,CH,13/10/2020,Training External             ,Training                      ,VIA-K - T/A PLANB CONSULTING            ,"£1,550.00"
Companies House,CH,23/10/2020,Training External             ,Training                      ,VIA-K - T/A PLANB CONSULTING            ,"£1,550.00"
Companies House,CH,23/10/2020,Training Other Directorates   ,Training                      ,CMC PARTNERSHIP GLOBAL LTD              ,"£2,390.40"
Companies House,CH,23/10/2020,Training Other Directorates   ,Training                      ,CMC PARTNERSHIP GLOBAL LTD              ,"£4,780.80"
Companies House,CH,06/10/2020,Travel,Covid 19 Activity             ,BLUE TRANSPORTATION LTD                 ,"£2,133.60"
Companies House,CH,06/10/2020,Travel,Covid 19 Activity             ,BLUE TRANSPORTATION LTD                 ,"£2,992.40"
Companies House,CH,06/10/2020,Travel,Covid 19 Activity             ,BLUE TRANSPORTATION LTD                 ,"£4,585.00"
Companies House,CH,15/10/2020,Travel,Covid 19 Activity             ,CITY CABS (EDINBURGH) LTD               ,£965.63
Companies House,CH,27/10/2020,Water                         ,Building Services             ,Dwr Cymru Welsh Water                   ,"£3,611.30"
Companies House,CH,30/10/2020,Wellbeing                     ,Health and Wellbeing          ,The Menopause Exchange,£500.00
Companies House,CH,06/10/2020,Wellbeing                     ,Health and Wellbeing          ,Mary Gavin Teamworks                    ,£585.00
Companies House,CH,06/10/2020,Wood Pellets                  ,Building Services             ,AMP CLEAN ENERGY                        ,"£3,165.50"
